[Event "NY Presidents Day Schiller-C 2024"]
[Site "New York"]
[Date "2024.02.17"]
[Round "4.9"]
[White "Mou, Iris"]
[Black "Campos Jimenez, Augusto Cesar"]
[Result "0-1"]
[ECO "C07"]
[WhiteElo "2128"]
[BlackElo "2288"]
[Annotator "TA"]
[PlyCount "106"]
[EventDate "2024.02.14"]
[EventType "schev"]
[EventCountry "USA"]
[SourceTitle "playchess.com"]
[Source "ChessBase"]
[SourceQuality "1"]
[TimeControl "5400+30"]

{[%evp 9,106,0,0,4,17,25,21,10,19,-29,2,-37,-32,-35,-45,-20,-22,-50,0,-10,6,-5,-14,-23,-13,-12,-6,-134,-111,-98,-51,-54,-27,-88,-92,-109,-110,-214,-180,-218,-221,-464,-436,-503,-502,-609,-484,-521,-440,-573,-563,-906,-881,-1106,-1087,-1275,-818,-816,-796,-831,-832,-791,-762,-1534,-1498,-1455,-1204,-2407,-2057,-2268,-1037,-1115,-1093,-1447,-1437,-2362,-1674,-2602,-2159,-29977,-29978,-29978,-29979,-29979,-29979,-29984,-29985,-29991,-29992,-29992,-29985,-29988,-29989,-29989,-29989,-29995,-29988,-29988,-29989]} 1. e4 {[%emt 0:00:01]} e6 {[%emt 0:06:18]} 2. d4 {[%emt 0:00:05]} d5 {[%emt 0:00:06]} 3. Nd2 {[%emt 0:00:06]} c5 {[%emt 0:00:11]} 4. Ngf3 {[%emt 0:00:08]} cxd4 {[%emt 0:01:36]} 5. Nxd4 {[%emt 0:00:11]} Nf6 {[%emt 0:00:08]} 6. exd5 {[%emt 0:01:16]} a6 {[%emt 0:01:22] Prevents Bb5+} 7. Bc4 {[%emt 0:06:34]} Nxd5 {[%emt 0:00:32]} 8. N2f3 {[%emt 0:00:39] The position is equal.} Be7 {[%emt 0:00:12]} 9. h4 {[%emt 0:04:48]} (9. O-O $142) 9... Qc7 {[%emt 0:07:35]} 10. Bxd5 {[%emt 0:06:27]} Qa5+ {[%emt 0:01:21]} 11. Bd2 {[%emt 0:08:24]} Qxd5 {[%emt 0:00:34]} 12. Qe2 {[%emt 0:01:15]} b5 {[%emt 0:04:30]} 13. a4 {[%emt 0:12:52]} b4 {[%emt 0:00:15]} ({Better is} 13... Nc6 $1 $15 14. Nxc6 Qxc6) 14. Rd1 {[%emt 0:03:43]} Nd7 {[%emt 0:06:13]} 15. Bg5 {[%emt 0:07:25] Hoping for Bxe7.} Nf6 {[%emt 0:03:36]} 16. O-O {[%emt 0:11:12] aiming for Ne5.} Bb7 {[%emt 0:03:19]} 17. Rfe1 $1 {[%emt 0:04:41]} O-O {[%emt 0:04:49]} 18. Qf1 {[%emt 0:03:36]} (18. Nb3 $11 Qc6 19. Na5) 18... Qa5 {[%emt 0:02:30]} 19. Ne5 {[%emt 0:03:05]} Rac8 {[%emt 0:03:05] Repels Ndc6} ({Black should play} 19... Qxa4 $17 20. Ng4 Kh8) 20. Qe2 {[%emt 0:05:14]} Qxa4 {[%emt 0:10:28]} 21. Nc4 {[%emt 0:02:08] [#] Wards off Qa5} (21. h5 $1 $11 {keeps the balance.}) 21... Qe8 $1 $17 {[%emt 0:03:37] Black converts the advantage convincingly.} 22. Bxf6 {[%emt 0:02:10]} gxf6 {[%emt 0:00:42]} 23. b3 {[%emt 0:07:35] [#]} (23. Nf5 $2 exf5 24. Qxe7 Qc6 $19 (24... Qxe7 25. Rxe7 Be4 26. Rd4 $11)) (23. Na5 $17 {was necessary.} Ba8 24. Nxe6 fxe6 25. Qxe6+ Rf7 26. Rd7 Rxc2 27. Rxe7 Qxe7 28. Qxe7 Rxe7 29. Rxe7) 23... Kh8 $1 $19 {[%emt 0:01:01]} 24. Ne3 {[%emt 0:03:48]} Rg8 {[%emt 0:00:27]} 25. f3 $2 {[%emt 0:00:36]} (25. g3) 25... Qf8 {[%emt 0:02:20]} 26. Qf2 {[%emt 0:03:10]} Bc5 {[%emt 0:01:23]} 27. h5 {[%emt 0:00:52]} f5 {[%emt 0:01:26]} 28. Qh4 {[%emt 0:00:42]} Qg7 {[%emt 0:02:40]} 29. Rd2 {[%emt 0:01:07]} Qg5 {[%emt 0:03:58]} 30. Qh2 {[%emt 0:00:55]} Qf6 {[%emt 0:03:11]} 31. Qf4 {[%emt 0:00:31]} Rcd8 {[%emt 0:04:13][%cal Oc5d6] ...Bd6! would now be deadly.} 32. Red1 {[%emt 0:00:13]} Rxd4 {[%emt 0:03:50]} 33. Rxd4 {[%emt 0:00:18]} e5 {[%emt 0:00:01]} 34. Qxf5 {[%emt 0:00:58]} Qxf5 {[%emt 0:00:08]} 35. Nxf5 {[%emt 0:00:04]} Bxf3 {[%emt 0:00:40] This pair of bishops is nice.} 36. Kh2 {[%emt 0:01:01]} Rxg2+ {[%emt 0:00:41]} (36... Bxd4 37. gxf3 Rg5 38. Nxd4 Rxh5+ (38... exd4 39. h6 $17) 39. Kg3 exd4 40. Rxd4 $11) (36... Bxd1 37. Rxd1 e4 38. Kh3 $11) 37. Kh3 {[%emt 0:00:04]} exd4 {[%emt 0:00:58]} 38. Re1 {[%emt 0:00:35]} Rg5 {[%emt 0:00:58]} ({And not} 38... Rxc2 39. Re8+) 39. h6 {[%emt 0:00:42]} Rg8 {[%emt 0:00:56] ( -> ...Bg4+)} ({Not} 39... Rxf5 40. Re8+) 40. Ng7 {[%emt 0:00:35]} Bf8 {[%emt 0:01:27][%cal Of3d5]} 41. Rf1 {[%emt 0:00:07]} Bd5 {[%emt 0:00:44]} 42. Rf5 {[%emt 0:00:44]} d3 {[%emt 0:00:31]} 43. cxd3 {[%emt 0:00:23]} Bxb3 {[%emt 0:00:03]} 44. Ra5 {[%emt 0:00:41]} Bxg7 {[%emt 0:00:22] Black mates.} 45. hxg7+ {[%emt 0:00:05]} Rxg7 {[%emt 0:00:07]} 46. Rxa6 {[%emt 0:00:06] KRB-KR} Be6+ {[%emt 0:00:20]} 47. Kh4 {[%emt 0:00:09]} b3 {[%emt 0:00:11]} 48. Rb6 {[%emt 0:00:08]} Rg4+ {[%emt 0:00:53]} 49. Kh5 {[%emt 0:00:09]} Rg6 {[%emt 0:00:18]} 50. Rb5 {[%emt 0:00:17]} Kg7 {[%emt 0:00:12]} 51. d4 {[%emt 0:00:08]} h6 {[%emt 0:00:10]} 52. Rb8 {[%emt 0:00:58]} Rg2 {[%emt 0:01:11][%cal Rg2h2]} 53. Kh4 {[%emt 0:00:19]} b2 {[%emt 0:00:15] Weighted Error Value: White=1.10/Black=0.38.  Mistake:       	White=5     	Black=2      Inaccurate:     	White=4     	Black=2      OK:         	White=3     	Black=7      Best:        	---       	Black=3      Strong:       	White=1     	Black=2} 0-1

[Event "NY Presidents Day Schiller-C 2024"]
[Site "New York"]
[Date "2024.02.18"]
[Round "5.1"]
[White "Czebe, Attila"]
[Black "Pagan, Jonathan"]
[Result "1/2-1/2"]
[ECO "E05"]
[WhiteElo "2346"]
[BlackElo "2018"]
[Annotator "TA"]
[PlyCount "138"]
[EventDate "2024.02.14"]
[EventType "schev"]
[EventCountry "USA"]
[SourceTitle "playchess.com"]
[Source "ChessBase"]
[SourceQuality "1"]
[TimeControl "5400+30"]

{[%evp 19,138,0,0,-17,-8,-18,6,17,12,16,18,10,11,19,10,17,10,4,50,46,58,25,28,0,0,0,0,0,0,0,0,0,0,0,57,57,57,57,64,57,57,57,57,57,57,57,79,79,79,79,79,79,79,0,49,49,49,49,49,29,29,29,29,29,29,29,29,29,29,29,29,29,29,29,29,29,29,29,29,29,29,29,44,29,44,29,44,44,44,37,37,37,44,0,44,44,44,44,44,44,44,44,44,44,44,10,270,0,0,0,0,0,0,0,0,0,0,0,0,0,0]} 1. c4 {[%emt 0:00:04]} e6 {[%emt 0:02:22]} 2. Nf3 {[%emt 0:01:12]} d5 {[%emt 0:00:15]} 3. g3 {[%emt 0:01:35]} Nf6 {[%emt 0:00:06]} 4. Bg2 {[%emt 0:00:02]} Be7 {[%emt 0:00:06]} 5. O-O {[%emt 0:00:08]} O-O {[%emt 0:00:05]} 6. d4 {[%emt 0:00:35]} dxc4 {[%emt 0:00:14]} 7. Na3 {[%emt 0:01:25]} Bxa3 {[%emt 0:02:18]} 8. bxa3 {[%emt 0:00:05]} Bd7 {[%emt 0:00:03]} 9. Ne5 {[%emt 0:00:48] 9.a4 is the hot move.} Bc6 {[%emt 0:00:10]} 10. Nxc6 {[%emt 0:00:24]} Nxc6 {[%emt 0:00:04]} 11. Bb2 {[%emt 0:10:22] E05: Open Catalan: 5 Nf3 Be7.} Nd5 {[%emt 0:01:08]} 12. a4 {[%emt 0:02:30]} Qd6 {[%emt 0:21:17]} 13. Qc1 {[%emt 0:04:34][%cal Ob2a3]} Rfd8 {[%emt 0:05:12][%cal Oc4c3]} 14. Qxc4 {[%emt 0:01:58]} Nb6 {[%emt 0:00:22][%csl LRc4,LRd4]} 15. Qc2 {[%emt 0:00:27]} Nxd4 {[%emt 0:18:25]} 16. Bxd4 {[%emt 0:00:19]} Qxd4 {[%emt 0:00:03]} 17. Bxb7 {[%emt 0:00:41]} Rab8 {[%emt 0:00:10]} 18. Bc6 {[%emt 0:10:58]} a5 $146 {[%emt 0:11:37]} (18... Nd5 $11 {might be stronger.}) ({Predecessor:} 18... Nc4 19. Bb5 Na3 20. Qxc7 Nxb5 21. axb5 Rxb5 22. a4 Rbd5 23. e3 Qc5 24. Rac1 Qxc7 25. Rxc7 {½-½ Le,Q (2728)-Erigaisi,A (2725) Julius Baer GenCup KO rapid 2022 (2.11)}) 19. e3 $14 {[%emt 0:05:28]} Qe5 {[%emt 0:02:14]} 20. Rac1 {[%emt 0:04:33]} g6 {[%emt 0:03:35]} 21. Qc5 {[%emt 0:00:42]} Qxc5 {[%emt 0:00:24]} 22. Rxc5 {[%emt 0:00:05]} Rd2 {[%emt 0:00:11]} 23. a3 {[%emt 0:05:51][%cal Of1c1]} Nd5 {[%emt 0:07:43]} 24. Rxa5 {[%emt 0:03:35]} Rb3 {[%emt 0:00:48]} 25. Ra8+ {[%emt 0:01:10]} Kg7 {[%emt 0:00:21]} 26. Rd8 {[%emt 0:02:34] aiming for e4.} Ra2 {[%emt 0:02:56]} (26... Rc3 $11) 27. Bxd5 {[%emt 0:02:36]} exd5 {[%emt 0:00:06]} 28. Rxd5 {[%emt 0:00:04]} Rbxa3 {[%emt 0:00:17][%mdl 4096] Endgame. KRR-KRR} 29. Rc1 {[%emt 0:00:28] Prevents Rc2.} Ra1 {[%emt 0:01:56]} 30. Rdd1 {[%emt 0:00:08][%csl LRa1,LRc7]} Rxc1 {[%emt 0:00:05]} 31. Rxc1 {[%emt 0:00:01]} Rxa4 {[%emt 0:00:07]} 32. Rxc7 {[%emt 0:00:02] KR-KR} h5 {[%emt 0:00:08]} 33. h4 {[%emt 0:00:04]} Kf6 {[%emt 0:00:18]} 34. Kg2 {[%emt 0:00:06]} Ke6 {[%emt 0:00:09]} 35. Rc6+ {[%emt 0:00:11]} Ke7 {[%emt 0:00:07]} 36. f4 {[%emt 0:00:26]} (36. Kf3 $16) 36... Ra5 {[%emt 0:02:45]} (36... Ra2+ $1 $11 {feels stronger.} 37. Kf3 Ra5) 37. Kf3 {[%emt 0:00:09]} Rb5 {[%emt 0:00:21]} 38. Ra6 {[%emt 0:00:40]} Rc5 {[%emt 0:00:52]} 39. e4 {[%emt 0:02:49]} Rc3+ {[%emt 0:00:43]} 40. Kg2 {[%emt 0:00:01]} Rc2+ {[%emt 0:00:59]} 41. Kh3 {[%emt 0:00:02]} Rc4 {[%emt 0:01:20]} 42. e5 {[%emt 0:00:01]} Rc2 {[%emt 0:02:07]} 43. Ra3 {[%emt 0:00:20]} Rc1 {[%emt 0:03:22]} 44. Kg2 {[%emt 0:00:08]} Rc2+ {[%emt 0:00:16]} 45. Kf3 {[%emt 0:00:06]} Rc1 {[%emt 0:00:07]} 46. Rd3 {[%emt 0:06:29]} Re1 {[%emt 0:00:35]} 47. Kf2 {[%emt 0:01:26]} Ra1 {[%emt 0:01:01]} 48. Ke3 {[%emt 0:01:42]} Ra4 {[%emt 0:00:47]} 49. Rb3 {[%emt 0:00:18]} Ra1 {[%emt 0:00:39]} 50. Ke4 {[%emt 0:00:09]} Re1+ {[%emt 0:00:27]} 51. Kd4 {[%emt 0:00:35]} Ra1 {[%emt 0:00:29]} 52. Rc3 {[%emt 0:00:13]} Rd1+ {[%emt 0:00:33]} 53. Ke4 {[%emt 0:02:14]} Re1+ {[%emt 0:00:41]} 54. Re3 {[%emt 0:00:40]} Ra1 {[%emt 0:00:06]} 55. Kf3 {[%emt 0:01:14]} Rb1 {[%emt 0:00:44]} 56. Rd3 {[%emt 0:01:46]} Ra1 {[%emt 0:00:30]} 57. Rd2 {[%emt 0:00:54]} Ra3+ {[%emt 0:00:22]} 58. Kg2 {[%emt 0:00:04]} Ra1 {[%emt 0:00:10]} 59. Rb2 {[%emt 0:00:58]} Rc1 {[%emt 0:00:52]} 60. Rb7+ {[%emt 0:00:06]} Ke6 {[%emt 0:00:26]} 61. Rb6+ {[%emt 0:00:04]} Ke7 {[%emt 0:00:06]} 62. f5 {[%emt 0:00:25]} Rc5 $2 {[%emt 0:07:35][%mdl 8192]} (62... Rc2+ $11 63. Kf3 gxf5) 63. f6+ $2 {[%emt 0:01:03]} ({Weaker is} 63. Rb7+ Ke8 $11) (63. fxg6 $18 {And now Rb7+ would win.} fxg6 64. Rxg6 Rxe5 65. Kf3 Rf5+ 66. Ke4) 63... Ke8 $11 {[%emt 0:04:17]} 64. Rb8+ {[%emt 0:08:07]} Kd7 {[%emt 0:00:03]} 65. Rb7+ {[%emt 0:01:05]} Ke6 {[%emt 0:00:15]} 66. Re7+ {[%emt 0:00:07]} Kf5 {[%emt 0:00:04]} 67. Rxf7 {[%emt 0:00:02] Black must now prevent Re7.} Rxe5 {[%emt 0:00:10]} 68. Rf8 {[%emt 0:00:10]} Re6 {[%emt 0:00:22]} 69. f7 {[%emt 0:00:09] White wants to mate with Rg8.} Kf6 {[%emt 0:00:10]} 1/2-1/2

[Event "NY Presidents Day Schiller-C 2024"]
[Site "New York"]
[Date "2024.02.18"]
[Round "5.2"]
[White "Quesada Vera, Liordis"]
[Black "Ho, Carter"]
[Result "1-0"]
[ECO "A11"]
[WhiteElo "2337"]
[BlackElo "2180"]
[Annotator "TA"]
[PlyCount "99"]
[EventDate "2024.02.14"]
[EventType "schev"]
[EventCountry "USA"]
[SourceTitle "playchess.com"]
[Source "ChessBase"]
[SourceQuality "1"]
[TimeControl "5400+30"]

{[%evp 13,99,30,29,4,6,0,21,7,4,0,0,0,14,-41,30,12,28,31,32,37,37,23,21,23,43,11,9,11,10,15,54,56,47,47,54,24,47,53,71,67,68,17,29,8,76,75,105,66,78,84,84,77,71,45,89,51,160,162,190,191,273,269,278,244,499,477,646,613,575,566,489,476,1933,29939,29953,11731,2530,941,29970,29970,29973,29974,29974,29975,29974,29975,29986,29987]} 1. Nf3 {[%emt 0:19:48]} d5 {[%emt 0:06:45]} 2. g3 {[%emt 0:00:16]} Nf6 {[%emt 0:01:10]} 3. Bg2 {[%emt 0:00:08]} g6 {[%emt 0:00:43]} 4. b3 {[%emt 0:00:09]} Bg7 {[%emt 0:00:18]} 5. Bb2 {[%emt 0:00:14]} O-O {[%emt 0:02:21]} 6. c4 {[%emt 0:00:18]} c6 {[%emt 0:00:27]} 7. O-O {[%emt 0:00:08]} Bg4 {[%emt 0:03:26]} 8. Qc2 {[%emt 0:00:43]} Nbd7 {[%emt 0:02:58]} 9. Rc1 {[%emt 0:00:12]} Rc8 {[%emt 0:04:09]} 10. d3 {[%emt 0:00:20] Die Stellung ist ausgeglichen.} Re8 {[%emt 0:02:17]} 11. h3 {[%emt 0:08:05]} Bxf3 {[%emt 0:00:38]} 12. Bxf3 {[%emt 0:00:12]} e5 {[%emt 0:02:35]} 13. Nd2 {[%emt 0:00:11]} (13. cxd5 $11 Nxd5 14. Qd1) 13... h5 {[%emt 0:01:26]} ({Vorzuziehen ist} 13... e4 $1 $15 14. Bg2 (14. dxe4 dxe4 15. Bg2 e3 $17) 14... e3 15. fxe3 Rxe3) 14. cxd5 $11 {[%emt 0:08:22]} cxd5 {[%emt 0:00:14]} 15. Qxc8 {[%emt 0:00:06]} Qxc8 {[%emt 0:00:11]} 16. Rxc8 {[%emt 0:00:05]} Rxc8 {[%emt 0:00:06]} 17. Rc1 {[%emt 0:00:05] Verhindert Rc2} Rxc1+ {[%emt 0:00:43]} 18. Bxc1 {[%emt 0:00:04]} Bh6 {[%emt 0:01:43][%cal Oe5e4]} 19. e3 {[%emt 0:00:29]} Nc5 {[%emt 0:01:43]} 20. Be2 {[%emt 0:00:11]} d4 {[%emt 0:03:00]} 21. Nc4 {[%emt 0:02:04]} Ncd7 {[%emt 0:00:30]} 22. Bf3 {[%emt 0:00:37]} b5 {[%emt 0:05:35]} 23. Nd6 {[%emt 0:04:38]} a6 {[%emt 0:01:23]} 24. Kf1 {[%emt 0:01:40]} Bf8 {[%emt 0:05:01]} 25. Nb7 {[%emt 0:04:09]} Nc5 {[%emt 0:14:03]} 26. Nxc5 {[%emt 0:01:42]} Bxc5 $16 {[%emt 0:00:03][%mdl 4096] Endspiel. KBB-KBN} 27. Bd2 {[%emt 0:00:17]} (27. exd4 $14 Bxd4 28. Bd2) 27... dxe3 $11 {[%emt 0:03:50]} 28. fxe3 {[%emt 0:00:10]} e4 {[%emt 0:00:20]} 29. dxe4 $16 {[%emt 0:00:52]} Bd6 {[%emt 0:04:01]} 30. Kf2 {[%emt 0:01:54][%cal Oe4e5]} Be5 {[%emt 0:01:21]} 31. Bb4 {[%emt 0:00:19]} g5 {[%emt 0:02:29]} 32. g4 {[%emt 0:02:56]} hxg4 {[%emt 0:03:20]} 33. hxg4 {[%emt 0:00:02]} Nd7 {[%emt 0:04:47]} 34. Be2 {[%emt 0:00:28] Jetzt gehts bergab für Schwarz.} Nb8 {[%emt 0:00:35]} (34... Nf6 $14) 35. a4 {[%emt 0:00:41]} Nc6 {[%emt 0:02:37]} 36. Bc5 {[%emt 0:00:44]} Na5 {[%emt 0:02:17]} (36... bxa4 {war angesagt.} 37. bxa4 Nb8) 37. axb5 $18 {[%emt 0:45:41]} axb5 {[%emt 0:00:49]} 38. b4 {[%emt 0:00:00][%cal Bb3b4,Bb4b5][%mdl 32]} (38. Bxb5 $6 Nxb3 39. Be7 Kg7 $16) 38... Nb7 {[%emt 0:00:07] [#]} (38... Nb3 {war nötig.} 39. Be7 (39. Bxb5 Nxc5 40. bxc5 Bb2 $16) 39... f6 40. Bxb5 Kf7) 39. Bd4 $1 {[%emt 0:00:00]} ({Lieber nicht} 39. Bxb5 Nxc5 40. bxc5 f6 $11) 39... f6 {[%emt 0:07:20]} 40. Bxb5 {[%emt 0:00:00]} ({Weniger gut wäre} 40. Bxe5 fxe5 41. Bxb5 Nd6 $18) 40... Nd6 {[%emt 0:01:31]} 41. Bc6 {[%emt 0:00:00]} Kf7 {[%emt 0:01:08]} 42. b5 {[%emt 0:00:00]} Bxd4 {[%emt 0:00:11]} (42... Ke7 $142 43. Ke2 Bh2) 43. exd4 {[%emt 0:00:00] KB-KN} Nc8 {[%emt 0:00:04]} 44. Ke3 {[%emt 0:00:00]} (44. Ke2 $142 Ke7 45. Kd3 Ke6 46. Kc3 Nb6 47. Kb4 Kd6 48. Ka5 Kc7 49. Bd5) 44... Ke6 {[%emt 0:00:10]} 45. Kd3 {[%emt 0:00:00]} (45. Kd2 $142 Kd6 46. Kc3) 45... Kd6 {[%emt 0:00:21]} 46. Kc4 {[%emt 0:00:00] Weiß setzt Matt.} Ne7 {[%emt 0:00:29] [#]} 47. e5+ $1 {[%emt 0:00:00]} fxe5 {[%emt 0:00:09]} 48. dxe5+ {[%emt 0:00:00]} Kxe5 {[%emt 0:00:20]} 49. Kc5 {[%emt 0:00:00]} Kf4 {[%emt 0:13:16]} 50. b6 {[%emt 0:00:00] Gewichteter Fehlerwert: Weiß=0.12 (sehr präzise) /Schwarz=0.40.  Fehler:       	Weiß=2     	Schwarz=6     Ungenau:       	Weiß=5     	Schwarz=4     OK:         	Weiß=14    	Schwarz=12    Bester:       	Weiß=3     	Schwarz=1     Stark:        	Weiß=1     	---} 1-0

[Event "NY Presidents Day Schiller-C 2024"]
[Site "New York"]
[Date "2024.02.18"]
[Round "5.3"]
[White "Perez Avendano, Paul Omar"]
[Black "Tang, Benjamin"]
[Result "0-1"]
[ECO "E66"]
[WhiteElo "2213"]
[BlackElo "2167"]
[Annotator "RC"]
[PlyCount "80"]
[EventDate "2024.02.14"]
[EventType "schev"]
[EventCountry "USA"]
[SourceTitle "playchess.com"]
[Source "ChessBase"]
[SourceQuality "1"]
[TimeControl "5400+30"]

1. d4 {[%emt 0:00:30]} Nf6 {[%emt 0:00:03]} 2. c4 {[%emt 0:00:00]} g6 {[%emt 0:00:05]} 3. Nf3 {[%emt 0:00:40]} Bg7 {[%emt 0:00:06]} 4. g3 {[%emt 0:00:10]} d6 {[%emt 0:00:24]} 5. Bg2 {[%emt 0:00:25]} O-O {[%emt 0:00:08]} 6. Nc3 {[%emt 0:01:31]} c5 {[%emt 0:00:06]} 7. O-O {[%emt 0:01:34]} Nc6 {[%emt 0:00:05]} 8. d5 {[%emt 0:01:46]} Na5 {[%emt 0:00:07]} 9. Qd3 {[%emt 0:01:13]} a6 {[%emt 0:01:27]} 10. e4 {[%emt 0:07:57]} Rb8 {[%emt 0:03:59]} 11. h3 {[%emt 0:12:39]} Nd7 {[%emt 0:07:23]} 12. a4 {[%emt 0:08:20]} Qb6 {[%emt 0:14:10]} 13. Bg5 {[%emt 0:20:30]} h6 {[%emt 0:06:02]} 14. Bd2 {[%emt 0:05:15]} Qb4 {[%emt 0:06:07]} 15. b3 {[%emt 0:26:48]} Nxb3 {[%emt 0:10:04]} 16. Rab1 {[%emt 0:02:36]} Nxd2 {[%emt 0:00:27]} 17. Rxb4 {[%emt 0:00:06]} Nxf3+ {[%emt 0:00:08]} 18. Qxf3 {[%emt 0:00:22]} cxb4 {[%emt 0:00:06]} 19. Na2 {[%emt 0:00:37]} a5 {[%emt 0:01:10]} 20. Nc1 {[%emt 0:00:13]} b6 {[%emt 0:04:08]} 21. Nb3 {[%emt 0:02:59]} Ba6 {[%emt 0:00:56]} 22. Rc1 {[%emt 0:01:01]} Rfc8 {[%emt 0:01:40]} 23. Bf1 {[%emt 0:00:15]} Bc3 {[%emt 0:07:01]} 24. Rxc3 {[%emt 0:01:37]} bxc3 {[%emt 0:00:09]} 25. Qxc3 {[%emt 0:00:31]} Ne5 {[%emt 0:07:31]} 26. Nd2 {[%emt 0:00:09]} Rc5 {[%emt 0:00:20]} 27. Nb3 {[%emt 0:04:16]} Rcc8 {[%emt 0:01:28]} 28. Nd2 {[%emt 0:00:00]} Rc7 {[%emt 0:03:15]} 29. Qd4 {[%emt 0:00:00]} Bxc4 {[%emt 0:26:25]} 30. f4 {[%emt 0:00:00]} Bxf1 {[%emt 0:00:00]} 31. fxe5 {[%emt 0:00:00]} Bxh3 {[%emt 0:00:00]} 32. exd6 {[%emt 0:00:00]} exd6 {[%emt 0:00:00]} 33. e5 {[%emt 0:00:00]} Rbc8 {[%emt 0:00:00]} 34. exd6 {[%emt 0:01:00]} Rc1+ {[%emt 0:00:00]} 35. Kf2 {[%emt 0:01:28]} R8c2 {[%emt 0:00:00]} 36. g4 {[%emt 0:01:01]} Rd1 {[%emt 0:00:00]} 37. Qe5 {[%emt 0:00:54]} Rcxd2+ {[%emt 0:00:00]} 38. Kg3 {[%emt 0:00:08]} Rxd5 {[%emt 0:00:00]} 39. Qe8+ {[%emt 0:00:51]} Kg7 {[%emt 0:00:00]} 40. Kxh3 {[%emt 0:00:35]} Rxd6 {[%emt 0:00:00]} 0-1

[Event "NY Presidents Day Schiller-C 2024"]
[Site "New York"]
[Date "2024.02.18"]
[Round "5.4"]
[White "Meduri, Aakaash"]
[Black "Andrianov, Nikolai"]
[Result "1/2-1/2"]
[ECO "E17"]
[WhiteElo "1956"]
[BlackElo "2266"]
[Annotator "TA"]
[PlyCount "30"]
[EventDate "2024.02.14"]
[EventType "schev"]
[EventCountry "USA"]
[SourceTitle "playchess.com"]
[Source "ChessBase"]
[SourceQuality "1"]
[TimeControl "5400+30"]

{[%evp 20,30,-6,-2,10,12,8,8,10,10,15,16,16]} 1. Nf3 {[%emt 0:00:50]} Nf6 {[%emt 0:00:15]} 2. c4 {[%emt 0:00:17]} c5 {[%emt 0:00:59]} 3. g3 {[%emt 0:00:23]} b6 {[%emt 0:00:10]} 4. Bg2 {[%emt 0:00:28]} Bb7 {[%emt 0:00:03]} 5. O-O {[%emt 0:00:21]} e6 {[%emt 0:00:05]} 6. b3 {[%emt 0:00:41]} Be7 {[%emt 0:00:25]} 7. Bb2 {[%emt 0:00:20]} O-O {[%emt 0:00:09]} 8. Nc3 {[%emt 0:01:01]} d5 {[%emt 0:01:01]} 9. cxd5 {[%emt 0:00:18]} Nxd5 {[%emt 0:00:42]} 10. d4 {[%emt 0:01:19]} Nxc3 {[%emt 0:07:44]} 11. Bxc3 {[%emt 0:00:14] Die Stellung ist ausgeglichen.} cxd4 {[%emt 0:05:58]} 12. Qxd4 {[%emt 0:01:08]} Qxd4 {[%emt 0:00:14]} 13. Nxd4 {[%emt 0:00:13]} Bxg2 {[%emt 0:00:07]} 14. Kxg2 {[%emt 0:00:13]} Rc8 {[%emt 0:00:14]} 15. Rac1 {[%emt 0:00:34]} Nc6 {[%emt 0:00:13] Hier war wenig los.   OK:         	Weiß=1     	Schwarz=2} 1/2-1/2